Cogmind - Beta 13 @@@ ROGUE MODE // 2024.04.28 @ 14:50:38 Player: orthostice Result: Destroyed by as-66881 with Assembled Blade Performance ------------- Evolutions (0) 0 Regions Visited (2) 400 Robots Destroyed (3) 15 Value Destroyed (91) 91 Prototype IDs (1) 20 Alien Tech Used (0) 0 Bonus (0) 0 TOTAL SCORE: 526 Bonus ------- None Cogmind --------- Core Integrity 0/250 Matter 185/300 Energy 250/250 System Corruption 1% Temperature Cool (0) Movement Rolling (100) Location -10/Mines Parts ------- > --- POWER (1) -------- Ion Engine > --- PROPULSION (2) --- Compact Wheel > --- UTILITY (2) ------ Small Storage Unit Experimental Sensor Array > --- WEAPON (2) ------- Light Assault Rifle Light Assault Rifle > --- INVENTORY (8) ---- Light Ion Engine Light Treads Compact Wheel EM Pulse Gun Medium Laser Peak State ------------ > --- POWER ------------ Ion Engine > --- PROPULSION ------- Light Treads Light Treads > --- UTILITY ---------- Small Storage Unit Experimental Sensor Array > --- WEAPON ----------- Light Assault Rifle Light Assault Rifle > --- INVENTORY -------- Light Ion Engine Wheel Compact Wheel Compact Wheel EM Pulse Gun Medium Laser [Rating: 15] Favorites ----------- Power Ion Engine Engine Ion Engine Propulsion Light Treads Treads Light Treads Wheel Compact Wheel Utility Small Storage Unit Device Experimental Sensor Array Storage Small Storage Unit Weapon Light Assault Rifle Energy Gun EM Pulse Gun Ballistic Gun Light Assault Rifle Build | -11 -10 -10 ------- Run | Yrd Mat Min Slots Evolved . | . . . Power . | . . . Propulsion . | . . . Utility . | . . . Weapon . | . . . Parts Attached 15 | 6 6 3 Power 3 | 1 2 . Engine 3 | 1 2 . Core . | . . . Reactor . | . . . Propulsion 6 | 2 2 2 Treads 4 | 2 2 . Leg . | . . . Wheel 2 | . . 2 Hover . | . . . Flight . | . . . Utility 2 | 1 . 1 Device 1 | . . 1 Storage 1 | 1 . . Processor . | . . . Hackware . | . . . Protection . | . . . Artifact . | . . . Weapon 4 | 2 2 . Energy Gun 1 | 1 . . Energy Cannon . | . . . Ballistic Gun 3 | 1 2 . Ballistic Cannon . | . . . Launcher . | . . . Special Weapon . | . . . Impact Weapon . | . . . Slashing Weapon . | . . . Piercing Weapon . | . . . Special Melee Weapon . | . . . Unidentified Prototypes 1 | . . 1 Parts Lost 2 | . . 2 Power . | . . . Propulsion 2 | . . 2 Utility . | . . . Weapon . | . . . Highest Loss Streak 2 | . . 2 To Critical Strikes 1 | . . 1 Average Slot Usage (%) 85 | . 82 86 Engine 13 | . 12 14 Treads 27 | . 27 26 Device 1 | . . 2 Storage 14 | . 14 14 Energy Gun 3 | . 9 . Ballistic Gun 24 | . 18 28 Naked Turns . | . . . Heaviest Build 13 | 13 13 13 Greatest Support 40 | 40 40 40 Greatest Overweight (x) . | . . . Average Overweight (x) . | . . . Largest Inventory Capacity 8 | 8 8 8 Average Capacity 7 | 7 8 8 Most Carried 7 | 4 6 7 Average Carried 5 | 3 4 5 Final Capacity 8 | 8 8 8 Final Carried 6 | 4 6 5 Class Distribution -------------------- 100% | Mutant Dominant Class ---------------- Mutant | -10/Materials Mutant | -10/Mines Resources | -11 -10 -10 ----------- Run | Yrd Mat Min Matter Collected 273 | 145 69 59 Remotely . | . . . Salvage Created 111 | . 111 . Parts 8 | . 8 . Haulers Intercepted . | . . . Recyclers Shooed 1 | . 1 . Parts Field Recycled . | . . . Retrieved Matter . | . . . Parts Self-Destructed . | . . . Prevented . | . . . Kills | -11 -10 -10 ------- Run | Yrd Mat Min Combat Hostiles Destroyed 3 | . 3 . Guns 2 | . 2 . AOE 1 | . 1 . Classes Destroyed 2 | . 2 . Swarmer 1 | . 1 . Grunt 2 | . 2 . Best Kill Streak 2 | . 2 . Combat Bots Only 2 | . 2 . Max Kills in Single Turn 1 | . 1 . Gunslinging . | . . . Exploded 1 | . 1 . Melee . | . . . Uniques/NPCs Destroyed . | . . . Combat | -11 -10 -10 -------- Run | Yrd Mat Min Hostile Shots Fired 60 | . 21 39 Missed 23 | . 5 18 Damage Taken 644 | . 207 437 Core 250 | . 90 160 Absorbed by Shields . | . . . Core Remaining (%) 100 | 100 . . Volleys Fired 18 | . 15 3 Largest 2 | . 2 2 Hottest 60 | . 60 40 Shots Fired 37 | . 30 7 Gun 37 | . 30 7 Cannon . | . . . Launcher . | . . . Special . | . . . Kinetic 33 | . 26 7 Thermal . | . . . Explosive . | . . . Electromagnetic 4 | . 4 . Robot Hit Streak 11 | . 11 5 Robot Miss Streak 3 | . 3 1 Penetration Max . | . . . Secondary Targets 1 | . 1 . Max Gunslinging Chain 1 | . 1 . Shots Hit Robots 28 | . 22 6 Core Hits 10 | . 9 1 Critical Kills . | . . . Critical Parts Destroyed 1 | . 1 . Critical Strikes 1 | . 1 . Destroy 1 | . 1 . Melee Attacks . | . . . Impact . | . . . Slashing . | . . . Piercing . | . . . Sneak Attacks . | . . . Combat Hostiles . | . . . Follow-up Attacks . | . . . Damage Inflicted 259 | . 217 42 Guns 211 | . 169 42 Cannons . | . . . Explosions 48 | . 48 . Melee . | . . . Ramming . | . . . Kinetic 190 | . 148 42 Thermal 48 | . 48 . Explosive . | . . . Electromagnetic 21 | . 21 . Impact . | . . . Slashing . | . . . Piercing . | . . . Highest Corruption 1 | . 1 1 Average Corruption 1 | . 1 1 Corruption Purged . | . . . Corruption Blocked . | . . . Effects 9 | . 2 7 Message Errors 3 | . 2 1 Matter Fused 3 | . . 3 Heat Flow Errors 1 | . . 1 Data Loss (major) 1 | . . 1 Misfires 1 | . . 1 Overload Shots . | . . . Overflow Damage . | . . . Projectiles . | . . . Explosions . | . . . Melee . | . . . Knockbacks . | . . . Impact . | . . . Kinetic . | . . . Secondary . | . . . Self-Inflicted Damage 25 | . 25 . Shots 1 | . 1 . Rammed . | . . . Targets Rammed . | . . . Kicked . | . . . Crushed . | . . . Highest Temperature 233 | . 32 233 Average Temperature 54 | . 15 98 Received Heat Transfer 192 | . 72 120 Siege Activations . | . . . Robots Corrupted . | . . . Combat Hostiles . | . . . Parts Fried . | . . . Impact Corruptions . | . . . Robots Melted . | . . . Combat Hostiles . | . . . Parts Melted . | . . . Heat Transferred 100 | . 100 . Parts Sabotaged . | . . . Parts Stolen . | . . . Parts Stripped . | . . . Power Chain Reactions 1 | . 1 . Alert | -11 -10 -10 ------- Run | Yrd Mat Min Peak Influence 193 | . 193 75 Initial 75 | . . 75 Average 44 | . 42 60 Maximum Alert Level . | . . . Low Security (%) 100 | 100 100 100 Level 1 . | . . . Level 2 . | . . . Level 3 . | . . . Level 4 . | . . . Level 5 . | . . . High Security . | . . . Max Security . | . . . Squads Dispatched . | . . . Investigation . | . . . Extermination . | . . . Reinforcement . | . . . Assault . | . . . Garrison . | . . . Intercept . | . . . Searches Triggered . | . . . Construction Impeded . | . . . Haulers Reinforced . | . . . Active Scanning Responses . | . . . Cargo Convoy Interrupts . | . . . Stealth | -11 -10 -10 --------- Run | Yrd Mat Min Distress Signals 1 | . 1 . Communications Jammed . | . . . Distress Signals . | . . . Times Spotted 30 | . 8 22 Peak Tracking Total 22 | . 4 22 Tactical Retreats 5 | . 5 . Traps | -11 -10 -10 ------- Run | Yrd Mat Min Traps Triggered 3 | . 3 . Indirectly . | . . . Trap Hack Attempts . | . . . Triggered . | . . . Disarmed . | . . . Reprogrammed . | . . . Reused . | . . . Traps Extracted . | . . . Installed . | . . . Triggered . | . . . Machines | -11 -10 -10 ---------- Run | Yrd Mat Min Machines Disabled . | . . . Max in Single Turn . | . . . Machines Repaired . | . . . Machines Dismantled . | . . . Machines Sabotaged . | . . . Overloaded Fab Kills . | . . . Hacking | -11 -10 -10 --------- Run | Yrd Mat Min Machines Accessed 2 | . 2 . Terminals 1 | . 1 . Fabricators . | . . . Repair Stations . | . . . Recycling Units 1 | . 1 . Scanalyzers . | . . . Garrison Access . | . . . Total Hacks 4 | . 4 . Successful 2 | . 2 . Failed 2 | . 2 . Catastrophic . | . . . Database Lockouts . | . . . Manual . | . . . Terminals 2 | . 2 . Fabricators . | . . . Repair Stations . | . . . Recycling Units 2 | . 2 . Scanalyzers . | . . . Garrison Access . | . . . Terminal Hacks 1 | . 1 . Robot Analysis 1 | . 1 . Fabricator Hacks . | . . . Repair Station Hacks . | . . . Recycling Unit Hacks 1 | . 1 . Retrieve Matter 1 | . 1 . Scanalyzer . | . . . Garrison Access Hacks . | . . . Unauthorized Hacks . | . . . Terminals . | . . . Fabricators . | . . . Repair Stations . | . . . Recycling Units . | . . . Scanalyzers . | . . . Garrison Access . | . . . Data Cores Recovered . | . . . Used . | . . . Hacking Detections 2 | . 2 . Full Trace Events . | . . . Feedback Events . | . . . Feedback Blocked . | . . . Robot Schematics Acquired . | . . . Robots Built . | . . . Authchips . | . . . Time . | . . . Total Robot Build Rating . | . . . Part Schematics Acquired . | . . . Parts Built . | . . . Authchips . | . . . Time . | . . . Total Part Build Rating . | . . . Parts Repaired . | . . . Time . | . . . Parts Recycled . | . . . Recycled Matter . | . . . Retrieved Matter . | . . . Retrieved Components . | . . . Parts Scanalyzed . | . . . Part Schematics Acquired . | . . . Parts Damaged . | . . . Bothacking | -11 -10 -10 ------------ Run | Yrd Mat Min Used RIF Installer . | . . . Robots Hacked . | . . . Non-combat . | . . . Combat . | . . . Robot Hacks Applied . | . . . Relay Couplers Released . | . . . Fabnet Peak Effective % . | . . . Robots Rewired . | . . . Allies Hacked . | . . . Hacks Repelled . | . . . Allies | -11 -10 -10 -------- Run | Yrd Mat Min Total Allies . | . . . Largest Group . | . . . Highest-Rated Group . | . . . Highest-Rated Ally . | . . . Total Orders . | . . . Ally Attacks . | . . . Total Damage . | . . . Kills . | . . . Allies Corrupted . | . . . Allies Melted . | . . . Intel | -11 -10 -10 ------- Run | Yrd Mat Min Robot Analysis Total 1 | . 1 . Derelict Logs Recovered 1 | . . 1 Drone Launches . | . . . Drone Recoveries . | . . . Exploration | -11 -10 -10 ------------- Run | Yrd Mat Min Turns Passed 940 | 171 277 492 Spaces Moved 548 | 101 142 305 Core 3 | 3 . . Treads 532 | 98 142 292 Legs . | . . . Wheels 13 | . . 13 Hover . | . . . Flight . | . . . Fastest Speed 50 | 50 160 90 Average Speed 157 | 156 160 157 Slowest Speed 160 | 160 160 160 Overloaded Moves . | . . . Propulsion Burnouts . | . . . Robots Hopped . | . . . Cave-ins Triggered . | . . . Exploration Rate (%) 34 | 5 22 77 Regions Visited 2 Branch Regions 1 Pre-discovered Areas . | . . . Known Exits Taken . | . . . Unknown Exits Taken 2 | 1 1 . Scrap Searched 1 | . . 1 Spaces Dug . | . . . Terrain Destroyed 2 | . 2 . Melee . | . . . Projectile . | . . . AOE 2 | . 2 . Terrain Rammed . | . . . Walls Destroyed . | . . . Machines Disabled . | . . . Actions | -11 -10 -10 --------- Run | Yrd Mat Min Total 588 | 111 165 312 Wait . | . . . Move 546 | 100 141 305 Hop . | . . . Pick Up 9 | 5 3 1 Fast Attach 8 | 5 3 . Attach 4 | 1 1 2 Detach . | . . . Swap 3 | . 2 1 Drop . | . . . Fire 18 | . 15 3 Melee . | . . . Ram . | . . . Kick . | . . . Crush . | . . . Escape Stasis . | . . . Rewire . | . . . Trap . | . . . Miscellaneous . | . . . Route ------- -11/Scrapyard -10/Materials -10/Mines History --------- Turn | Location | Event 9 | -11/Scrapyard | Discovered new exit (range 15) 172 | -11/Scrapyard | Entered Materials 291 | -10/Materials | Discovered new exit (range 15) 306 | -10/Materials | Build established: Mutant 449 | -10/Materials | Entered Mines 701 | -10/Mines | Learned Materials emergency access door positions 864 | -10/Mines | Found a damaged Exp. Sensor Array with a note attached 867 | -10/Mines | Found Prototype Device 868 | -10/Mines | Identified Exp. Sensor Array 907 | -10/Mines | Assembled infested the area 924 | -10/Mines | Core integrity fell below 50% 934 | -10/Mines | Core integrity fell below 20% 941 | -10/Mines | Destroyed by as-66881 with Assembled Blade Last Messages --------------- System corrupted: Heat flow error (+251). Searching scrap... Found 22 Matter. Found 37 Matter. Acquired 37 matter. Acquired 22 matter. System corrupted: Matter fused (-5). ALERT: Infestation in the mines, dispatching Demolisher response squad. [Achievement: Hunted] Critical hit (Destroy). Lgt. Treads destroyed. C-30 ARC bursts open, deploying its payload. U-05 Engineer destroyed. Wheel destroyed. D-53 Grenadier destroyed. as-69903 destroyed. as-88248 destroyed. as-92495 sneak attacks. T-07 Excavator destroyed. Map ----- +----------------------------------------------------+ | #### ## #######?## ## # | | ##?### #### ##???????# """ # | | #???####??## ##???????## """ ####### ## | | #??????????# #????##### """ #????## ## ##? | | ##??????????# #???## #???## ######?? | | #???????????# #???# ##### ##?????? | | ##?????????? ## ## ### #?????? | | #????????????########??# ?## ##?# #???? | | #??????????????????????# ??####??# ### #?## | | ####??????????????????? ?????????# ??## #?# | | #??????????????????? ?????????# ????## ##?# | | #?????????????????? ????????? ??????# ##??# | | # #??????????????????#????????? ????????###???# | | # #???????????????????????????##???????????????# | | # #?????? ?????????????????????????????????????# | | # #????? ?????????????????????????????????????## | | # #???## #??????######?????????????????????????? | | # #???# ####??# ####?????????????????????# | | # #???? #### ##????????????????????# | | # #???? ## #???????????????###### | | #????? ????????????????# | | #????? ## ???????????###### ### | | ##????? #??# ????????????# #?? | | ##????# #????# ????????????# #?? | | ##??## ##???#! #???????????## ######?? | | ####? #???#%*@#??#####???## #??????? | | ## #???#aaa#??# #??## #?????? | | #????#|*a#### ### ###???? | | #?????# a##? ! #???? | | ### ##?????# a ???? *% | | ??## """ # #??????# a ? ### % ! * !!# | | ???# """ ## #??????# ? ##?# ## | | ???# """ ## #??????## ?#?# ####? | | ??# ### #???????#### # ! ##???? | | ?# #### #??????????# ## #???? | | ?# ###### #??????????# ## ######## #???? | | ?#####????# #??????????# ## #??????### #???? | | ??????????# ###??????????# ## #????????? #???? | | ??????????# #????????????# ## #????????? #???? | | ??????????# #????????????# ? #????????? #???? | | ??????????# #????????????# ??? ????????? !???? | | ??????????# #????????????####???#????????? *%???? | | ??????????# #?????????????????????????????? ???? | | ??????????# #???????????????????????????????????? | | ??????????# #???????????????????????????????????? | | ?????###### ##??????????????????????????????????? | | ?????# ##?????????????????????????????????? | | ?????# #?????????????????????????????????? | | ?????# #?????????????????????????????????? | | ?????### #????????????????????????????????? | +----------------------------------------------------+ Best States ------------- Heat Dissipation 25 Energy Generation 10 Energy Capacity 250 Matter Stores 206 Matter Capacity 300 Sight Range 16 Robot Scan Range 20 Terrain Scan Density 10 Evasion (%) 40 Recoil Reduction 2 Item Schematics ----------------- None Robot Schematics ------------------ None Fabricated ------------ Nothing Alien Tech Used ----------------- None Achievements -------------- Hunted Challenges ------------ None Game ------ Seed ConcussivePowerRay Manual? 0 Play Time 00:08:36 Cumulative 4.0 hours Start 2024.04.28 @ 14:42:46 End 2024.04.28 @ 14:50:38 Sessions 1 Manual Loads 0 Difficulty Rogue Special Mode None Game No. 8 Rogue 8 Adventurer 0 Explorer 0 Win Type - Total 0 Types 0/0/0/0/0/0/0/0/0 Lore% 5 Gallery% 8 Achievement% 9 Wizard Run 0 Options --------- Layout 1 ASCII 0 Keyboard 0 Movement Vi Keybinds 0 Fullscreen 1 Font 32/SmallcapsGlow Map View 50x35 Zoom Use 0% Tactical HUD 0 Map Filters NONE Filters NONE Steam 1 RUN: 3437ff5b-f1d5-4aa2-a486-294c65d0408c